fUST/lending_fUST_20250221
["ID","MTS","AMOUNT","RATE_DAILY","PERIOD"]
[353889932,1740114640608,-500.0,0.00013863,2]
[353889933,1740114640622,-500.0,0.00013863,2]
[353889934,1740114640632,-500.0,0.00013863,2]
[353889935,1740114640641,-500.0,0.00013863,2]
[353889936,1740114640651,-500.0,0.00013863,2]
[353889937,1740114640662,-500.0,0.00013863,2]
[353889938,1740114640675,-500.0,0.00013863,2]
[353889939,1740114640684,-500.0,0.00013863,2]
[353889940,1740114640695,-524.28,0.00013863,2]
[353889941,1740114640705,-500.0,0.00013863,2]
[353889942,1740114640714,-500.0,0.00013863,2]
[353889943,1740114640723,-500.0,0.00013863,2]
[353889944,1740114640732,-511.75,0.00013863,2]
[353889945,1740114640741,-500.0,0.00013863,2]
[353889946,1740114640751,-500.0,0.00013863,2]
[353889947,1740114640760,-500.0,0.00013863,2]
[353889948,1740114640769,-500.0,0.00013863,2]
[353889949,1740114640778,-500.0,0.00013863,2]
[353889950,1740114640788,-500.0,0.00013863,2]
[353889951,1740114640797,-500.0,0.00013863,2]
[353889952,1740114640806,-500.0,0.00013863,2]
[353889953,1740114640816,-500.0,0.00013863,2]
[353889954,1740114640825,-500.0,0.00013863,2]
[353889955,1740114640834,-500.0,0.00013863,2]
[353889956,1740114640843,-500.0,0.00013863,2]
[353889957,1740114640852,-500.0,0.00013863,2]
[353889958,1740114640861,-1007.53,0.00013863,2]
[353889959,1740114640870,-4009.9,0.00013863,2]
[353889960,1740114640879,-8446.91,0.00013863,2]
[353889961,1740114640888,-615.2,0.00013863,2]
[353889962,1740114640897,-1320.31,0.00013863,2]
[353889963,1740114640906,-500.0,0.00013863,2]
[353889964,1740114640916,-557.27,0.00013863,2]
[353889965,1740114640925,-500.0,0.00013863,2]
[353889966,1740114640934,-752.73,0.00013863,2]
[353889967,1740114640943,-500.0,0.00013863,2]
[353889968,1740114640952,-500.0,0.00013863,2]
[353889969,1740114640961,-500.0,0.00013863,2]
[353889970,1740114640971,-648.09,0.00013863,2]
[353889971,1740114640980,-17376.56,0.00013863,2]
[353889972,1740114640988,-500.0,0.00013863,2]
[353889973,1740114640998,-500.0,0.00013863,2]
[353889974,1740114641007,-923.91,0.00013863,2]
[353889975,1740114641016,-554.48,0.00013863,2]
[353889976,1740114641025,-500.0,0.00013863,2]
[353889977,1740114641035,-500.0,0.00013863,2]
[353889978,1740114641043,-1155.74,0.00013863,2]
[353889979,1740114641052,-721.81,0.00013863,2]
[353889980,1740114641061,-646.04,0.00013863,2]
[353889981,1740114641070,-500.0,0.00013863,2]
[353889982,1740114641079,-1855.29,0.00013863,2]
[353889983,1740114641088,-500.0,0.00013863,2]
[353889984,1740114641097,-3407.22,0.00013863,2]
[353889985,1740114641106,-7910.61,0.00013863,2]
[353889986,1740114641115,-1002.16,0.00013863,2]
[353889987,1740114641124,-500.0,0.00013863,2]
[353889988,1740114641133,-600.82,0.00013863,2]
[353889989,1740114641142,-500.0,0.00013863,2]
[353889990,1740114641151,-1241.33,0.00013863,2]
[353889991,1740114641160,-1856.52,0.00013863,2]
[353889992,1740114641169,-500.0,0.00013863,2]
[353889993,1740114641181,-1030.11,0.00013863,2]
[353889994,1740114641189,-2100.6,0.00013863,2]
[353889995,1740114641199,-665.38,0.00013863,2]
[353889996,1740114641208,-500.0,0.00013863,2]
[353889997,1740114641217,-500.0,0.00013863,2]
[353889998,1740114641227,-580.96,0.00013863,2]
[353889999,1740114641235,-500.0,0.00013863,2]
[353890000,1740114641245,-1133.36,0.00013863,2]
[353890001,1740114641254,-500.0,0.00013863,2]
[353890002,1740114641263,-506.03743178,0.00013863,2]
[353890003,1740114641272,-500.0,0.00013863,2]
[353890004,1740114641282,-1557.5,0.00013863,2]
[353890005,1740114641291,-500.0,0.00013863,2]
[353890006,1740114641300,-1012.26,0.00013863,2]
[353890007,1740114641310,-500.0,0.00013863,2]
[353890008,1740114641319,-500.0,0.00013863,2]
[353890009,1740114641330,-500.0,0.00013863,2]
[353890010,1740114641339,-1120.86,0.00013863,2]
[353890011,1740114641348,-3734.49,0.00013863,2]
[353890012,1740114641357,-500.0,0.00013863,2]
[353890013,1740114641369,-542.97,0.00013863,2]
[353890014,1740114641379,-500.0,0.00013863,2]
[353890015,1740114641388,-500.0,0.00013945,2]
[353890016,1740114641398,-500.0,0.00013945,2]
[353890017,1740114641407,-500.0,0.00013945,2]
[353890018,1740114641416,-500.0,0.00013945,2]
[353890019,1740114641425,-500.0,0.00013945,2]
[353890020,1740114641434,-500.0,0.00013945,2]
[353890021,1740114641444,-491.74280467,0.00013945,2]
[353890022,1740114641453,-500.0,0.00013945,2]
[353890023,1740114641462,-500.0,0.00013945,2]
[353890024,1740114641471,-500.0,0.00013945,2]
[353890025,1740114641480,-241.48260556,0.00013945,2]
[353890026,1740114641489,-500.0,0.00013945,2]
[353890027,1740114641498,-500.0,0.00013945,2]
[353890028,1740114641508,-500.0,0.00013945,2]
[353890029,1740114641518,-500.0,0.00013945,2]
[353890030,1740114641527,-349.0215852,0.00013945,2]
[353890031,1740114641537,-500.0,0.00013945,2]
[353890032,1740114641546,-500.0,0.00013945,2]
[353890033,1740114641555,-500.0,0.00013945,2]
[353890034,1740114641564,-524.28,0.00013945,2]
[353890035,1740114641573,-500.0,0.00013945,2]
[353890036,1740114641581,-500.0,0.00013945,2]
[353890037,1740114641590,-511.75,0.00013945,2]
[353890038,1740114641599,-500.0,0.00013945,2]
[353890039,1740114641608,-500.0,0.00013945,2]
[353890040,1740114641618,-500.0,0.00013945,2]
[353890041,1740114641627,-500.0,0.00013945,2]
[353890042,1740114641641,-500.0,0.00013945,2]
[353890043,1740114641653,-500.0,0.00013945,2]
[353890044,1740114641662,-500.0,0.00013945,2]
[353890045,1740114641671,-500.0,0.00013945,2]
[353890046,1740114641681,-500.0,0.00013945,2]
[353890047,1740114641690,-500.0,0.00013945,2]
[353890048,1740114641699,-500.0,0.00013945,2]
[353890049,1740114641709,-1007.53,0.00013945,2]
[353890050,1740114641718,-4009.9,0.00013945,2]
[353890051,1740114641727,-8446.91,0.00013945,2]
[353890052,1740114641735,-615.2,0.00013945,2]
[353890053,1740114641745,-1320.31,0.00013945,2]
[353890054,1740114641753,-500.0,0.00013945,2]
[353890055,1740114641763,-557.27,0.00013945,2]
[353890056,1740114641772,-500.0,0.00013945,2]
[353890057,1740114641782,-752.73,0.00013945,2]
[353890058,1740114641791,-500.0,0.00013945,2]
[353890059,1740114641801,-500.0,0.00013945,2]
[353890060,1740114641810,-500.0,0.00013945,2]
[353890061,1740114641819,-648.09,0.00013945,2]
[353890062,1740114641828,-17376.56,0.00013945,2]
[353890063,1740114641837,-500.0,0.00013945,2]
[353890064,1740114641846,-500.0,0.00013945,2]
[353890065,1740114641855,-923.91,0.00013945,2]
[353890066,1740114641864,-554.48,0.00013945,2]
[353890067,1740114641873,-500.0,0.00013945,2]
[353890068,1740114641882,-500.0,0.00013945,2]
[353890069,1740114641891,-1155.74,0.00013945,2]
[353890070,1740114641900,-721.81,0.00013945,2]
[353890071,1740114641909,-646.04,0.00013945,2]
[353890072,1740114641920,-500.0,0.00013945,2]
[353890073,1740114641930,-1855.29,0.00013945,2]
[353890074,1740114641939,-500.0,0.00013945,2]
[353890075,1740114641949,-3407.22,0.00013945,2]
[353890076,1740114641958,-7910.61,0.00013945,2]
[353890077,1740114641967,-1002.16,0.00013945,2]
[353890078,1740114641976,-500.0,0.00013945,2]
[353890079,1740114641986,-600.82,0.00013945,2]
[353890080,1740114641995,-500.0,0.00013945,2]
[353890081,1740114642004,-1241.33,0.00013945,2]
[353890082,1740114642014,-1856.52,0.00013945,2]
[353890083,1740114642023,-500.0,0.00013945,2]
[353890084,1740114642033,-1030.11,0.00013945,2]
[353890085,1740114642042,-2100.6,0.00013945,2]
[353890086,1740114642051,-665.38,0.00013945,2]
[353890087,1740114642061,-500.0,0.00013945,2]
[353890088,1740114642070,-500.0,0.00013945,2]
[353890089,1740114642080,-580.96,0.00013945,2]
[353890090,1740114642090,-500.0,0.00013945,2]
[353890091,1740114642099,-1133.36,0.00013945,2]
[353890092,1740114642109,-500.0,0.00013945,2]
[353890093,1740114642119,-500.0,0.00013945,2]
[353890094,1740114642129,-1557.5,0.00013945,2]
[353890095,1740114642138,-500.0,0.00013945,2]
[353890096,1740114642147,-1012.26,0.00013945,2]
[353890097,1740114642157,-500.0,0.00013945,2]
[353890098,1740114642166,-500.0,0.00013945,2]
[353890099,1740114642175,-500.0,0.00013945,2]
[353890100,1740114642186,-1120.86,0.00013945,2]
[353890101,1740114642195,-3734.49,0.00013945,2]
[353890102,1740114642205,-500.0,0.00013945,2]
[353890103,1740114642214,-542.97,0.00013945,2]
[353890104,1740114642224,-500.0,0.00013945,2]
[353890105,1740114642234,-22867.86766479,0.00014,2]
[353890106,1740114642244,-677.26767248,0.00014009,2]
[353890107,1740114642254,-160.0,0.00014024,3]
[353890108,1740114642263,-288.56618357,0.00014026,2]
[353890109,1740114642273,-500.0,0.00014027,2]
[353890110,1740114642282,-500.0,0.00014027,2]
[353890111,1740114642291,-500.0,0.00014027,2]
[353890112,1740114642301,-500.0,0.00014027,2]
[353890113,1740114642310,-500.0,0.00014027,2]
[353890114,1740114642322,-500.0,0.00014027,2]
[353890115,1740114642331,-500.0,0.00014027,2]
[353890116,1740114642341,-500.0,0.00014027,2]
[353890117,1740114642350,-500.0,0.00014027,2]
[353890118,1740114642359,-524.28,0.00014027,2]
[353890119,1740114642369,-500.0,0.00014027,2]
[353890120,1740114642378,-500.0,0.00014027,2]
[353890121,1740114642388,-511.75,0.00014027,2]
[353890122,1740114642397,-500.0,0.00014027,2]
[353890123,1740114642407,-500.0,0.00014027,2]
[353890124,1740114642519,-500.0,0.00014027,2]
[353890125,1740114642529,-500.0,0.00014027,2]
[353890126,1740114642539,-500.0,0.00014027,2]
[353890127,1740114642548,-500.0,0.00014027,2]
[353890128,1740114642558,-500.0,0.00014027,2]
[353890129,1740114642568,-1007.53,0.00014027,2]
[353890130,1740114642577,-4009.9,0.00014027,2]
[353890131,1740114642587,-8446.91,0.00014027,2]
[353890132,1740114642596,-615.2,0.00014027,2]
[353890133,1740114642606,-1320.31,0.00014027,2]
[353890134,1740114642618,-500.0,0.00014027,2]
[353890135,1740114642629,-557.27,0.00014027,2]
[353890136,1740114642639,-500.0,0.00014027,2]
[353890137,1740114642648,-752.73,0.00014027,2]
[353890138,1740114642658,-500.0,0.00014027,2]
[353890139,1740114642667,-500.0,0.00014027,2]
[353890140,1740114642677,-500.0,0.00014027,2]
[353890141,1740114642688,-648.09,0.00014027,2]
[353890142,1740114642697,-17376.56,0.00014027,2]
[353890145,1740114642709,-500.0,0.00014027,2]
[353890147,1740114642719,-508.37035668,0.00014027,2]
[353890148,1740114642728,-923.91,0.00014027,2]
[353890151,1740114642738,-554.48,0.00014027,2]
[353890154,1740114642748,-500.0,0.00014027,2]
[353890157,1740114642758,-500.0,0.00014027,2]
[353890160,1740114642767,-1155.74,0.00014027,2]
[353890164,1740114642780,-721.81,0.00014027,2]
[353890167,1740114642790,-646.04,0.00014027,2]
[353890170,1740114642799,-500.0,0.00014027,2]
[353890172,1740114642809,-1855.29,0.00014027,2]
[353890174,1740114642819,-500.0,0.00014027,2]
[353890175,1740114642828,-3407.22,0.00014027,2]
[353890178,1740114642838,-7910.61,0.00014027,2]
[353890181,1740114642847,-1002.16,0.00014027,2]
[353890185,1740114642856,-500.0,0.00014027,2]
[353890188,1740114642866,-600.82,0.00014027,2]
[353890190,1740114642875,-500.0,0.00014027,2]
[353890193,1740114642884,-1241.33,0.00014027,2]
[353890195,1740114642894,-1856.52,0.00014027,2]
[353890198,1740114642903,-500.0,0.00014027,2]
[353890201,1740114642912,-1030.11,0.00014027,2]
[353890202,1740114642922,-2100.6,0.00014027,2]
[353890203,1740114642932,-500.0,0.00014027,2]
[353890205,1740114642942,-665.38,0.00014027,2]
[353890207,1740114642951,-500.0,0.00014027,2]
[353890208,1740114642960,-580.96,0.00014027,2]
[353890210,1740114642969,-500.0,0.00014027,2]
[353890211,1740114642979,-1133.36,0.00014027,2]
[353890212,1740114642989,-500.0,0.00014027,2]
[353890214,1740114642999,-500.0,0.00014027,2]
[353890216,1740114643008,-1557.5,0.00014027,2]
[353890218,1740114643017,-500.0,0.00014027,2]
[353890219,1740114643026,-1012.26,0.00014027,2]
[353890221,1740114643036,-616.09117246,0.00014027,2]
[353890222,1740114643045,-500.0,0.00014027,2]
[353890223,1740114643055,-500.0,0.00014027,2]
[353890224,1740114643064,-1120.86,0.00014027,2]
[353890225,1740114643073,-3734.49,0.00014027,2]
[353890226,1740114643082,-500.0,0.00014027,2]
[353890227,1740114643092,-542.97,0.00014027,2]
[353890228,1740114643102,-500.0,0.00014027,2]
[353890230,1740114643112,-501.07938361,0.0001405,2]
[353890232,1740114643121,-500.0,0.0001405,2]
[353890234,1740114643130,-501.48132129,0.0001405,2]
[353890236,1740114643139,-501.15348366,0.00014053,2]
[353890238,1740114643148,-500.0,0.00014054,2]
[353890239,1740114643158,-500.27639315,0.00014055,2]
[353890241,1740114643168,-500.43396858,0.00014055,2]
[353890243,1740114643177,-500.0,0.00014109,2]
[353890245,1740114643186,-500.0,0.00014109,2]
[353890247,1740114643196,-500.0,0.00014109,2]
[353890249,1740114643205,-500.0,0.00014109,2]
[353890251,1740114643214,-500.0,0.00014109,2]
[353890252,1740114643223,-500.0,0.00014109,2]
[353890254,1740114643233,-344.4147945,0.00014109,2]
[353890256,1740114643243,-500.0,0.00014109,2]
[353890258,1740114643255,-500.0,0.00014109,2]
[353890260,1740114643264,-524.28,0.00014109,2]
[353890262,1740114643273,-500.0,0.00014109,2]
[353890264,1740114643283,-500.0,0.00014109,2]
[353890266,1740114643292,-511.75,0.00014109,2]
[353890268,1740114643301,-500.0,0.00014109,2]
[353890270,1740114643311,-500.0,0.00014109,2]
[353890272,1740114643320,-500.0,0.00014109,2]
[353890274,1740114643330,-317.31127923,0.00014109,2]
[353890276,1740114643339,-500.0,0.00014109,2]
[353890279,1740114643348,-500.0,0.00014109,2]
[353890281,1740114643358,-500.0,0.00014109,2]
[353890283,1740114643367,-1007.53,0.00014109,2]
[353890285,1740114643377,-4009.9,0.00014109,2]
[353890287,1740114643386,-8446.91,0.00014109,2]
[353890289,1740114643396,-615.2,0.00014109,2]
[353890291,1740114643405,-1320.31,0.00014109,2]
[353890293,1740114643415,-500.0,0.00014109,2]
[353890295,1740114643424,-557.27,0.00014109,2]
[353890297,1740114643435,-500.0,0.00014109,2]
[353890299,1740114643444,-752.73,0.00014109,2]
[353890301,1740114643453,-500.0,0.00014109,2]
[353890303,1740114643462,-500.0,0.00014109,2]
[353890305,1740114643472,-500.0,0.00014109,2]
[353890307,1740114643482,-648.09,0.00014109,2]
[353890309,1740114643492,-17376.56,0.00014109,2]
[353890311,1740114643502,-923.91,0.00014109,2]
[353890313,1740114643511,-554.48,0.00014109,2]
[353890315,1740114643520,-500.0,0.00014109,2]
[353890317,1740114643529,-500.0,0.00014109,2]
[353890318,1740114643539,-1155.74,0.00014109,2]
[353890319,1740114643548,-721.81,0.00014109,2]
[353890320,1740114643557,-646.04,0.00014109,2]
[353890321,1740114643566,-500.0,0.00014109,2]
[353890322,1740114643576,-1855.29,0.00014109,2]
[353890323,1740114643586,-500.0,0.00014109,2]
[353890324,1740114643601,-3407.22,0.00014109,2]
[353890325,1740114643612,-7910.61,0.00014109,2]
[353890326,1740114643622,-1002.16,0.00014109,2]
[353890327,1740114643636,-500.0,0.00014109,2]
[353890328,1740114643645,-600.82,0.00014109,2]
[353890329,1740114643655,-500.0,0.00014109,2]
[353890330,1740114643664,-1241.33,0.00014109,2]
[353890331,1740114643676,-1856.52,0.00014109,2]
[353890332,1740114643686,-636.34537082,0.00014109,2]
[353890333,1740114643696,-1030.11,0.00014109,2]
[353890335,1740114643706,-2100.6,0.00014109,2]
[353890336,1740114643717,-500.0,0.00014109,2]
[353890338,1740114643726,-665.38,0.00014109,2]
[353890340,1740114643737,-500.0,0.00014109,2]
[353890342,1740114643746,-580.96,0.00014109,2]
[353890344,1740114643756,-500.0,0.00014109,2]
[353890346,1740114643766,-1133.36,0.00014109,2]
[353890348,1740114643775,-500.0,0.00014109,2]
[353890350,1740114643785,-507.11130393,0.00014109,2]
[353890352,1740114643796,-1557.5,0.00014109,2]
[353890355,1740114643811,-500.0,0.00014109,2]
[353890357,1740114643821,-1012.26,0.00014109,2]
[353890359,1740114643830,-500.0,0.00014109,2]
[353890361,1740114643840,-500.0,0.00014109,2]
[353890363,1740114643850,-1120.86,0.00014109,2]
[353890365,1740114643859,-3734.49,0.00014109,2]
[353890367,1740114643868,-500.0,0.00014109,2]
[353890369,1740114643878,-542.97,0.00014109,2]
[353890371,1740114643887,-500.0,0.00014109,2]
[353890373,1740114643898,-500.2151841,0.00014111,2]
[353890375,1740114643910,-500.0,0.00014173,2]
[353890377,1740114643921,-500.0,0.00014173,2]
[353890379,1740114643935,-500.44003634,0.00014173,2]
[353890381,1740114643945,-500.0,0.00014173,2]
[353890383,1740114643954,-500.15058549,0.00014173,2]
[353890385,1740114643963,-500.8256556,0.00014173,2]
[353890387,1740114643973,-501.3968598,0.00014173,2]
[353890389,1740114643982,-500.38026704,0.00014173,2]
[353890391,1740114643992,-519.05548856,0.00014173,2]
[353890393,1740114644001,-597.46128311,0.00014173,2]
[353890395,1740114644011,-501.18809879,0.00014173,2]
[353890397,1740114644020,-502.47630544,0.00014173,2]
[353890399,1740114644030,-500.0,0.00014173,2]
[353890401,1740114644040,-500.0,0.00014173,2]
[353890403,1740114644051,-500.47489498,0.00014173,2]
[353890405,1740114644061,-500.0,0.00014173,2]
[353890407,1740114644070,-500.0,0.00014173,2]
[353890409,1740114644079,-500.0,0.00014178,7]
[353890411,1740114644088,-500.0,0.00014178,7]
[353890413,1740114644097,-500.0,0.00014178,7]
[353890415,1740114644107,-500.0,0.00014178,7]
[353890417,1740114644116,-500.0,0.00014178,7]
[353890418,1740114644125,-500.0,0.00014178,7]
[353890420,1740114644134,-500.0,0.00014178,7]
[353890423,1740114644143,-500.0,0.00014178,7]
[353890424,1740114644153,-639.03,0.00014178,7]
[353890426,1740114644163,-500.0,0.00014178,7]
[353890428,1740114644172,-500.0,0.00014191,2]
[353890430,1740114644182,-500.0,0.00014191,2]
[353890432,1740114644191,-500.0,0.00014191,2]
[353890435,1740114644201,-500.0,0.00014191,2]
[353890437,1740114644212,-500.0,0.00014191,2]
[353890439,1740114644222,-500.0,0.00014191,2]
[353890440,1740114644231,-500.0,0.00014191,2]
[353890442,1740114644241,-500.0,0.00014191,2]
[353890444,1740114644251,-524.28,0.00014191,2]
[353890446,1740114644261,-500.0,0.00014191,2]
[353890448,1740114644273,-500.0,0.00014191,2]
[353890450,1740114644282,-511.75,0.00014191,2]
[353890452,1740114644291,-500.0,0.00014191,2]
[353890454,1740114644300,-500.0,0.00014191,2]
[353890456,1740114644309,-500.0,0.00014191,2]
[353890458,1740114644319,-500.0,0.00014191,2]
[353890460,1740114644328,-500.0,0.00014191,2]
[353890462,1740114644337,-500.0,0.00014191,2]
[353890464,1740114644346,-1007.53,0.00014191,2]
[353890466,1740114644356,-4009.9,0.00014191,2]
[353890468,1740114644365,-8446.91,0.00014191,2]
[353890470,1740114644375,-615.2,0.00014191,2]
[353890472,1740114644385,-1320.31,0.00014191,2]
[353890474,1740114644394,-500.0,0.00014191,2]
[353890476,1740114644404,-557.27,0.00014191,2]
[353890478,1740114644414,-500.0,0.00014191,2]
[353890480,1740114644423,-752.73,0.00014191,2]
[353890482,1740114644435,-500.0,0.00014191,2]
[353890484,1740114644445,-500.0,0.00014191,2]
[353890486,1740114644455,-648.09,0.00014191,2]
[353890488,1740114644465,-17376.56,0.00014191,2]
[353890490,1740114644475,-923.91,0.00014191,2]
[353890492,1740114644484,-554.48,0.00014191,2]
[353890494,1740114644494,-500.0,0.00014191,2]
[353890496,1740114644504,-500.0,0.00014191,2]
[353890498,1740114644515,-1155.74,0.00014191,2]
[353890500,1740114644525,-721.81,0.00014191,2]
[353890502,1740114644537,-646.04,0.00014191,2]
[353890504,1740114644549,-1855.29,0.00014191,2]
[353890506,1740114644562,-500.0,0.00014191,2]
[353890508,1740114644571,-3407.22,0.00014191,2]
[353890510,1740114644581,-7910.61,0.00014191,2]
[353890512,1740114644591,-1002.16,0.00014191,2]
[353890514,1740114644601,-500.0,0.00014191,2]
[353890516,1740114644611,-600.82,0.00014191,2]
[353890518,1740114644628,-1241.33,0.00014191,2]
[353890520,1740114644643,-1856.52,0.00014191,2]
[353890522,1740114644653,-1030.11,0.00014191,2]
[353890524,1740114644662,-2100.6,0.00014191,2]
[353890526,1740114644673,-500.0,0.00014191,2]
[353890528,1740114644686,-665.38,0.00014191,2]
[353890530,1740114644696,-500.0,0.00014191,2]
[353890532,1740114644707,-580.96,0.00014191,2]
[353890534,1740114644717,-500.0,0.00014191,2]
[353890536,1740114644727,-1133.36,0.00014191,2]
[353890538,1740114644736,-500.0,0.00014191,2]
[353890541,1740114644745,-1557.5,0.00014191,2]
[353890543,1740114644755,-507.4301472,0.00014191,2]
[353890545,1740114644765,-1012.26,0.00014191,2]
[353890547,1740114644776,-500.0,0.00014191,2]
[353890549,1740114644786,-500.0,0.00014191,2]
[353890551,1740114644795,-1120.86,0.00014191,2]
[353890553,1740114644805,-3734.49,0.00014191,2]
[353890555,1740114644819,-500.0,0.00014191,2]
[353890557,1740114644834,-542.97,0.00014191,2]
[353890558,1740114644845,-500.0,0.00014191,2]
[353890561,1740114644854,-227.85160147,0.00014195,2]
[353890562,1740114644863,-7438.69753278,0.0001426,2]
[353890565,1740114644872,-500.0,0.00014273,2]
[353890566,1740114644882,-500.0,0.00014273,2]
[353890569,1740114644891,-500.0,0.00014273,2]
[353890570,1740114644900,-500.0,0.00014273,2]
[353890573,1740114644909,-500.0,0.00014273,2]
[353890575,1740114644919,-500.0,0.00014273,2]
[353890577,1740114644930,-500.0,0.00014273,2]
[353890579,1740114644939,-464.68147116,0.00014273,2]
[353890581,1740114644949,-524.28,0.00014273,2]
[353890582,1740114644958,-500.0,0.00014273,2]
[353890584,1740114644967,-500.0,0.00014273,2]
[353890587,1740114644977,-511.75,0.00014273,2]
[353890589,1740114644987,-500.0,0.00014273,2]
[353890591,1740114644997,-559.23830574,0.00014273,2]
[353890593,1740114645006,-500.0,0.00014273,2]
[353890595,1740114645020,-500.0,0.00014273,2]
[353890597,1740114645043,-441.20485915,0.00014273,2]
[353890599,1740114645063,-500.0,0.00014273,2]
[353890601,1740114645083,-1007.53,0.00014273,2]
[353890602,1740114645103,-4009.9,0.00014273,2]
[353890605,1740114645123,-8446.91,0.00014273,2]
[353890607,1740114645134,-615.2,0.00014273,2]
[353890609,1740114645145,-1320.31,0.00014273,2]
[353890611,1740114645156,-500.0,0.00014273,2]
[353890613,1740114645167,-557.27,0.00014273,2]
[353890615,1740114645178,-500.0,0.00014273,2]
[353890616,1740114645189,-752.73,0.00014273,2]
[353890619,1740114645201,-500.0,0.00014273,2]
[353890620,1740114645211,-500.0,0.00014273,2]
[353890622,1740114645228,-648.09,0.00014273,2]
[353890624,1740114645244,-17376.56,0.00014273,2]
[353890627,1740114645260,-554.48,0.00014273,2]
[353890629,1740114645279,-923.91,0.00014273,2]
[353890631,1740114645300,-500.0,0.00014273,2]
[353890637,1740114645320,-500.0,0.00014273,2]
[353890639,1740114645438,-1155.74,0.00014273,2]
[353890641,1740114645459,-721.81,0.00014273,2]
[353890643,1740114645481,-646.04,0.00014273,2]
[353890645,1740114645502,-1855.29,0.00014273,2]
[353890647,1740114645524,-500.0,0.00014273,2]
[353890649,1740114645545,-3407.22,0.00014273,2]
[353890652,1740114645567,-7910.61,0.00014273,2]
[353890653,1740114645587,-1002.16,0.00014273,2]
[353890656,1740114645608,-500.0,0.00014273,2]
[353890658,1740114645630,-600.82,0.00014273,2]
[353890660,1740114645651,-1241.33,0.00014273,2]
[353890663,1740114645672,-1856.52,0.00014273,2]
[353890665,1740114645695,-1030.11,0.00014273,2]
[353890667,1740114645715,-2100.6,0.00014273,2]
[353890669,1740114645736,-500.0,0.00014273,2]
[353890671,1740114645756,-665.38,0.00014273,2]
[353890673,1740114645777,-500.0,0.00014273,2]
[353890674,1740114645798,-580.96,0.00014273,2]
[353890676,1740114645819,-500.0,0.00014273,2]
[353890679,1740114645840,-1133.36,0.00014273,2]
[353890681,1740114645861,-500.0,0.00014273,2]
[353890683,1740114645884,-1557.5,0.00014273,2]
[353890685,1740114645901,-1012.26,0.00014273,2]
[353890687,1740114645913,-500.0,0.00014273,2]
[353890689,1740114645923,-500.0,0.00014273,2]
[353890691,1740114645934,-1120.86,0.00014273,2]
[353890693,1740114645945,-3734.49,0.00014273,2]
[353890695,1740114645967,-500.0,0.00014273,2]
[353890697,1740114645988,-542.97,0.00014273,2]
[353890699,1740114646009,-500.0,0.00014273,2]
[353890701,1740114646023,-151.0,0.000143,2]
[353890703,1740114646035,-160.0,0.000143,4]
[353890705,1740114646056,-275.27015905,0.0001431,2]
[353890707,1740114646094,-407.03464734,0.00014314,2]
[353890709,1740114646106,-536.128,0.00014327,2]
[353890711,1740114646117,-500.0,0.00014328,2]